[Event "Mitropa Cup Open 2022"]
[Site "Corte"]
[Date "2022.05.01"]
[Round "2.2"]
[White "Kusa, Jakub"]
[Black "Kozak, Adam"]
[Result "1/2-1/2"]
[ECO "E18"]
[WhiteElo "2329"]
[BlackElo "2535"]
[Annotator "TA"]
[PlyCount "150"]
[EventDate "2022.04.30"]
[EventType "team-tourn"]
[EventCountry "FRA"]
[SourceTitle "playchess.com"]
[Source "ChessBase"]
[SourceQuality "1"]
[TimeControl "40/5400+30:1800+30"]

{[%evp 17,150,-15,0,-10,14,-31,0,-37,-31,-28,-29,-37,-26,-41,-20,-27,-15,-42,-29,-35,-38,-33,-33,-33,-39,-34,-47,-40,-40,-40,-33,-34,-33,-33,-33,-33,-33,-37,-22,-11,-11,-45,-10,-10,-10,-12,-16,-16,0,0,0,-43,0,0,0,0,0,0,0,0,0,0,0,0,0,0,0,0,0,0,0,0,0,0,0,0,0,0,0,0,0,0,0,0,0,0,0,0,0,0,0,0,0,0,0,0,0,0,0,0,0,0,0,0,0,0,0,0,0,0,0,0,0,0,0,0,0,0,0,0,0,0,0,0,0,0,0,0,0,0,0,0,0,0,0]} 1. d4 {[%emt 0:00:05]} Nf6 {[%emt 0:03:25]} 2. Nf3 {[%emt 0:00:28]} b6 {[%emt 0:02:58]} 3. g3 {[%emt 0:01:17]} Bb7 {[%emt 0:00:15]} 4. c4 {[%emt 0:01:21]} e6 {[%emt 0:11:00]} 5. Bg2 {[%emt 0:00:42]} Be7 {[%emt 0:00:09]} 6. O-O {[%emt 0:00:40]} O-O {[%emt 0:00:05]} 7. Nc3 {[%emt 0:00:36]} Ne4 {[%emt 0:00:08]} 8. Qc2 {[%emt 0:01:16] 8.Bd2 is the modern continuation.} Nxc3 {[%emt 0:00:39]} 9. bxc3 {[%emt 0:00:11]} Qc8 {[%emt 0:02:44]} 10. e4 {[%emt 0:05:06] E19: Queen's Indian: Old Main Line with 7...Ne4 8 Qc2 Nxc3 8 Qxc3.} (10. d5 $5) 10... d6 {[%emt 0:00:56] [#]} 11. e5 $146 {[%emt 0:08:25]} ({Predecessor:} 11. a4 Nc6 12. Be3 e5 13. d5 Na5 14. Nd2 Ba6 15. Qa2 c6 16. Rfc1 Qd7 17. Bf1 Rac8 {1-0 (42) Sadovsky,A (2316)-Chernov,A (2314) Chess.com INT 2021}) 11... Nd7 {[%emt 0:05:34]} 12. Bf4 {[%emt 0:08:04]} dxe5 {[%emt 0:02:11]} 13. Nxe5 {[%emt 0:01:47]} Bxg2 {[%emt 0:08:24]} 14. Kxg2 {[%emt 0:01:34]} Qb7+ {[%emt 0:00:07]} 15. Kg1 {[%emt 0:02:45]} Rfd8 {[%emt 0:08:18]} 16. Rfd1 {[%emt 0:05:44]} Rac8 {[%emt 0:12:08]} 17. a4 {[%emt 0:04:53]} Nxe5 {[%emt 0:03:57]} 18. Bxe5 {[%emt 0:00:50]} Bd6 {[%emt 0:00:54]} 19. Qe2 {[%emt 0:09:20]} Qc6 {[%emt 0:01:42]} 20. d5 {[%emt 0:06:01]} exd5 {[%emt 0:02:57]} 21. cxd5 {[%emt 0:01:45]} Qe8 {[%emt 0:02:39]} 22. Re1 {[%emt 0:00:43]} Bxe5 {[%emt 0:03:32]} 23. Qxe5 {[%emt 0:00:10]} Qxe5 {[%emt 0:00:04]} 24. Rxe5 $15 {[%emt 0:00:08][%mdl 4096] Endgame KRR-KRR} f6 {[%emt 0:00:01]} 25. Rf5 {[%emt 0:01:02]} Kf7 {[%emt 0:12:21]} 26. c4 $1 {[%emt 0:01:50]} Re8 {[%emt 0:02:51]} 27. a5 {[%emt 0:06:37]} Ke7 {[%emt 0:00:05]} 28. axb6 {[%emt 0:05:58]} axb6 {[%emt 0:00:07]} 29. c5 {[%emt 0:03:54]} bxc5 {[%emt 0:00:13]} (29... Ra8 $5 {[%cal Ra8a1]} 30. Rc1 b5 $11) 30. Ra6 {[%emt 0:00:21]} Kd7 {[%emt 0:05:06] With the idea ...Ra8.} 31. Rc6 {[%emt 0:00:59]} Re1+ {[%emt 0:02:34]} 32. Kg2 {[%emt 0:00:08]} Rc1 {[%emt 0:00:06]} 33. Rf4 {[%emt 0:02:48]} h5 {[%emt 0:02:39]} 34. Rh4 {[%emt 0:02:05]} Rh8 {[%emt 0:01:47]} (34... Rb8 $5 {[%cal Rb8b6]}) 35. Ra4 {[%emt 0:01:13] The position is equal.} Rb8 {[%emt 0:02:45] [#] ...Rb6 is the strong threat.} 36. Ra7 {[%emt 0:02:28]} Rc8 {[%emt 0:00:02]} 37. Ra5 {[%emt 0:04:24]} Rc3 {[%emt 0:02:09]} 38. Ra4 {[%emt 0:03:26]} ({But not} 38. Rcxc5 Rxc5 39. Rxc5 Kd6 $17) 38... Rb8 {[%emt 0:00:49] Strongly threatening ...Rb6.} 39. Ra7 {[%emt 0:01:14]} Rc8 {[%emt 0:00:02]} 40. Ra4 {[%emt 0:01:37]} Rc2 {[%emt 0:00:31]} 41. Kf3 {[%emt 0:33:08]} Rc1 {[%emt 0:05:34]} 42. Rh4 {[%emt 0:00:00]} Rh8 {[%emt 0:05:14]} 43. Ra4 {[%emt 0:00:00]} Rc2 {[%emt 0:01:13]} 44. Ra5 {[%emt 0:00:00]} Rc3+ {[%emt 0:03:19]} 45. Kf4 {[%emt 0:00:00]} Re8 {[%emt 0:10:40] [#] Threatens to win with ...Re5.} 46. Raxc5 {[%emt 0:00:00]} Rxc5 {[%emt 0:01:02]} 47. Rxc5 $11 {[%emt 0:00:00] KR-KR} Re7 {[%emt 0:00:38]} 48. Rc6 {[%emt 0:00:00]} Re5 {[%emt 0:01:33]} 49. Rc5 {[%emt 0:00:00]} g5+ {[%emt 0:00:20]} 50. Kf3 {[%emt 0:00:00]} g4+ {[%emt 0:00:17]} 51. Kg2 {[%emt 0:00:00]} Rf5 {[%emt 0:01:15]} 52. Kf1 {[%emt 0:00:00]} Rg5 {[%emt 0:00:27]} 53. Kg1 {[%emt 0:00:00]} Re5 {[%emt 0:01:10]} 54. Kf1 {[%emt 0:00:42]} Re4 {[%emt 0:01:28]} 55. Rc6 {[%emt 0:01:29]} Rd4 {[%emt 0:00:10]} 56. Rc5 {[%emt 0:02:13]} Rb4 {[%emt 0:00:16]} 57. Ke2 {[%emt 0:01:46]} Re4+ {[%emt 0:02:09]} 58. Kf1 {[%emt 0:01:00]} Re5 {[%emt 0:00:33]} 59. Kg2 {[%emt 0:00:46]} Re2 {[%emt 0:00:34]} 60. Kf1 {[%emt 0:01:03]} Rb2 {[%emt 0:00:05]} 61. Ke1 {[%emt 0:00:51]} Rb1+ {[%emt 0:01:31]} 62. Ke2 {[%emt 0:00:15]} Rb2+ {[%emt 0:02:04]} 63. Ke3 {[%emt 0:00:37]} Rb3+ {[%emt 0:00:17]} 64. Ke2 {[%emt 0:00:43]} Rb2+ {[%emt 0:00:40]} 65. Ke3 {[%emt 0:00:47]} Rb3+ {[%emt 0:00:05]} 66. Ke2 {[%emt 0:00:19]} h4 {[%emt 0:01:22]} 67. gxh4 {[%emt 0:00:30]} Rh3 {[%emt 0:00:15]} 68. Rc6 {[%emt 0:01:12]} Rxh2 {[%emt 0:00:19]} 69. Rxf6 {[%emt 0:01:16]} g3 {[%emt 0:00:01]} 70. Kf1 {[%emt 0:00:41]} gxf2 {[%emt 0:00:09]} 71. Rf4 {[%emt 0:00:20]} Kd6 {[%emt 0:00:05]} 72. Rc4 {[%emt 0:00:23]} Kd7 {[%emt 0:00:24]} 73. Rf4 {[%emt 0:00:39]} Kd6 {[%emt 0:00:05]} 74. Rc4 {[%emt 0:00:12]} Kxd5 {[%emt 0:00:08]} 75. Rxc7 {[%emt 0:00:07]} Ke4 {[%emt 0:00:06] Weighted Error Value: White=0.05 (flawless) /Black=0.05 (flawless)} 1/2-1/2

[Event "Mitropa Cup Open 2022"]
[Site "Corte"]
[Date "2022.05.01"]
[Round "2.3"]
[White "Nemeth, Miklos"]
[Black "Mica, Marek"]
[Result "1-0"]
[ECO "C02"]
[WhiteElo "2451"]
[BlackElo "2334"]
[Annotator "TA"]
[PlyCount "88"]
[EventDate "2022.04.30"]
[EventType "team-tourn"]
[EventCountry "FRA"]
[SourceTitle "playchess.com"]
[Source "ChessBase"]
[SourceQuality "1"]
[TimeControl "40/5400+30:1800+30"]

{[%evp 10,88,0,-7,0,-33,-13,-13,-12,-26,-18,-64,-19,-32,-42,-34,-37,-36,-33,-27,-33,-42,-25,-35,-35,-27,-39,-35,-39,-33,0,0,0,0,33,27,17,-8,0,0,77,-21,-20,-27,-33,-25,-30,-20,-24,-37,0,-37,-10,-8,0,0,15,0,127,116,490,483,426,427,2512,2694,12831,12832,12829,-1034,12834,12835,12835,12835,29989,29990,29990,29991,29991,29992,29993]} 1. e4 {[%emt 0:00:03]} e6 {[%emt 0:00:09]} 2. d4 {[%emt 0:00:05]} d5 {[%emt 0:00:05]} 3. e5 {[%emt 0:00:05]} c5 {[%emt 0:00:13]} 4. c3 {[%emt 0:00:04]} Bd7 {[%emt 0:00:44]} 5. Nf3 {[%emt 0:00:10]} Nc6 {[%emt 0:00:40]} 6. Bd3 {[%emt 0:02:11]} cxd4 {[%emt 0:03:33] C02: French: Advance Variation.} 7. O-O {[%emt 0:00:08] is now debated instead of 7.cxd4.} Qb6 {[%emt 0:02:53]} 8. a3 {[%emt 0:01:23]} Nge7 {[%emt 0:01:37] The position is equal.} 9. Re1 {[%emt 0:01:57]} Rc8 {[%emt 0:12:54]} 10. h4 {[%emt 0:02:59]} (10. b4 $1 $11) 10... h6 {[%emt 0:01:52]} 11. h5 {[%emt 0:00:25]} a6 {[%emt 0:02:32] [#]} 12. b4 $146 {[%emt 0:00:19]} ({Predecessor:} 12. Nbd2 dxc3 13. bxc3 Na5 14. Rb1 Qc7 15. Qe2 Qxc3 16. Bb2 Qc7 17. Bd4 b5 18. a4 {0-1 (35) Dogan,N (2282)-Krishna,C (2479) Mersin 2021}) 12... dxc3 {[%emt 0:05:10]} 13. Nxc3 {[%emt 0:00:05] [#]} Nxb4 $1 {[%emt 0:05:02]} 14. Na4 {[%emt 0:00:06]} Bxa4 {[%emt 0:00:42]} 15. Qxa4+ {[%emt 0:00:05]} Nbc6 {[%emt 0:00:08]} 16. Rb1 {[%emt 0:03:28]} Qc7 {[%emt 0:05:20]} 17. Bd2 {[%emt 0:10:19]} Qd7 {[%emt 0:05:46][%cal Oc6e5]} 18. Qg4 {[%emt 0:15:11]} Rc7 {[%emt 0:14:49]} 19. Nh4 g5 {[%emt 0:11:05]} 20. hxg6 {[%emt 0:07:40]} fxg6 {[%emt 0:00:14]} 21. Nxg6 {[%emt 0:01:42]} ({Much worse is} 21. Bxg6+ Nxg6 22. Qxg6+ Qf7 23. Qxf7+ Kxf7 $17) 21... Nxg6 {[%emt 0:00:23]} (21... Rg8 $5 {[%cal Re7g6]}) 22. Bxg6+ {[%emt 0:01:03]} ({Reject} 22. Qxg6+ Qf7 $15) 22... Kd8 {[%emt 0:00:15]} 23. Qh3 {[%emt 0:06:43][%mdl 1024] White has compensation.} (23. Be3 $5 {[%cal Re3b6]}) 23... Rg8 {[%emt 0:06:28]} 24. Bh5 {[%emt 0:02:05] This bishop pair is nice.} Qg7 {[%emt 0:01:49] Against Bg4} (24... Bc5 $11) 25. Rb3 {[%emt 0:06:47] The board is on fire. White is more active.} (25. Bf3 $16 Qg6 26. Be3) 25... Bc5 $11 {[%emt 0:02:02]} 26. Bf4 {[%emt 0:01:15]} Nd4 {[%emt 0:05:07]} 27. Rg3 {[%emt 0:01:38]} Qf8 {[%emt 0:00:47]} 28. Rxg8 {[%emt 0:17:29]} Qxg8 {[%emt 0:00:05]} 29. Rd1 {[%emt 0:00:43]} Qf8 {[%emt 0:06:05][%csl LRa3,LRf4]} 30. g3 {[%emt 0:00:20][%cal Od1d4]} (30. Be3 $5 {[%cal Re3d4]} Nf5 31. Bxc5 Rxc5 32. Bg4 $11) 30... Nf5 {[%emt 0:02:42]} 31. a4 Rg7 {[%emt 0:01:57]} 32. Bg4 {[%emt 0:04:36]} Rf7 {[%emt 0:01:50]} 33. Rd2 {[%emt 0:01:14]} h5 {[%emt 0:01:01]} (33... b6 $11) 34. Qxh5 $16 {[%emt 0:00:54] Strongly threatening Qg6.} Qg8 {[%emt 0:00:51][%mdl 8192] Against Qg6} (34... Kd7 $16) 35. Bxf5 $18 {[%emt 0:01:30]} Rxf5 {[%emt 0:00:19]} 36. Rxd5+ $1 {[%emt 0:00:19][%cal Bd2d5,Bd5c5,Bc5c8,Bc8g8,Bg8g7,Bg7c7][%mdl 32]} Kc7 {[%emt 0:00:34]} (36... exd5 $142 37. Qxf5 Qf8) 37. Rxc5+ {[%emt 0:00:04]} Kb6 {[%emt 0:00:09]} 38. Be3 {[%emt 0:00:11]} Rxh5 {[%emt 0:00:53]} 39. a5+ {[%emt 0:00:13][%cal Ba4a5,Ba5b6][%mdl 32]} Ka7 {[%emt 0:00:23]} 40. Rc8+ $1 {[%emt 0:00:06][%mdl 64] [#] Discovered Attack} b6 {[%emt 0:00:12]} 41. Rxg8 {[%emt 0:30:12]} Rxe5 {[%emt 0:30:10]} 42. axb6+ {[%emt 0:00:21] White mates.} Kb7 {[%emt 0:00:06]} 43. Rg7+ {[%emt 0:00:05]} Kc6 {[%emt 0:00:30]} 44. Rc7+ {[%emt 0:00:05]} Kd5 {Weighted Error Value: White=0.11 (very precise) /Black=0.65} 1-0

[Event "Mitropa Cup Open 2022"]
[Site "Corte"]
[Date "2022.05.01"]
[Round "2.4"]
[White "Frank, Adam"]
[Black "Aron S P"]
[Result "1-0"]
[ECO "C99"]
[WhiteElo "2327"]
[BlackElo "2400"]
[Annotator "TA"]
[PlyCount "105"]
[EventDate "2022.04.30"]
[EventType "team-tourn"]
[EventCountry "FRA"]
[SourceTitle "playchess.com"]
[Source "ChessBase"]
[SourceQuality "1"]
[BlackTeam "India"]
[BlackTeamCountry "IND"]
[TimeControl "40/5400+30:1800+30"]

{[%evp 36,105,33,29,36,37,29,26,39,21,39,14,152,151,131,134,204,192,458,473,566,550,536,495,472,243,493,531,528,520,536,529,487,467,534,514,819,812,904,904,791,784,898,900,1190,563,845,838,779,569,657,657,657,657,657,650,650,650,792,723,1064,1064,1060,902,29973,822,2652,2721,2293,2230,1695,1314]} 1. e4 {[%emt 0:00:03]} e5 {[%emt 0:00:04]} 2. Nf3 {[%emt 0:00:04]} Nc6 {[%emt 0:00:04]} 3. Bb5 {[%emt 0:00:03]} a6 {[%emt 0:00:03]} 4. Ba4 {[%emt 0:00:03]} Nf6 {[%emt 0:00:05]} 5. O-O {[%emt 0:00:04]} Be7 {[%emt 0:00:25]} 6. Re1 {[%emt 0:00:05]} b5 {[%emt 0:00:04]} 7. Bb3 {[%emt 0:00:03]} d6 {[%emt 0:00:05]} 8. c3 {[%emt 0:00:03]} O-O {[%emt 0:00:07]} 9. h3 {[%emt 0:00:05]} Na5 {[%emt 0:00:04]} 10. Bc2 {[%emt 0:00:09]} c5 {[%emt 0:00:10]} 11. d4 {[%emt 0:00:03]} Qc7 {[%emt 0:00:06]} 12. Nbd2 {[%emt 0:00:04]} cxd4 {[%emt 0:00:03]} 13. cxd4 {[%emt 0:00:04]} Nc6 {[%emt 0:00:05]} 14. Nb3 {[%emt 0:00:03]} a5 {[%emt 0:00:10][%cal Ba6a5,Ba5a4][%mdl 32]} 15. Be3 {[%emt 0:00:04]} a4 {[%emt 0:00:05]} 16. Nbd2 {[%emt 0:00:03]} Nb4 {[%emt 0:00:08]} 17. Bb1 {[%emt 0:00:03]} Bd7 {[%emt 0:00:07]} 18. a3 {[%emt 0:00:04]} Nc6 {[%emt 0:00:05]} 19. Bd3 {[%emt 0:00:03]} Rfb8 {[%emt 0:00:07] C99: Closed Ruy Lopez: Chigorin Defence: 11 d4 Qc7 12 Nbd2 cxd4.} 20. Qe2 {[%emt 0:01:05]} Qd8 {[%emt 0:07:17]} 21. Rac1 {[%emt 0:05:24][%cal Ba1c1,Bc1c2,Bc2c5,Bc5e5][%mdl 32] [#]} Qe8 $146 {[%emt 0:06:13] White has an edge.} ({Predecessor:} 21... b4 22. Nc4 exd4 23. Nxd4 Ne5 24. Nf5 Bxf5 25. exf5 Nxd3 26. Qxd3 d5 27. Ne5 bxa3 {1-0 (71) Caceres Cortes,J (2007)-Levkovsky,A (2267) Montreal 2012}) 22. Rc2 {[%emt 0:06:25]} Bd8 {[%emt 0:08:02]} 23. Rec1 {[%emt 0:02:39]} Na5 {[%emt 0:10:15]} (23... exd4 $11 24. Nxd4 Ne5) 24. dxe5 $16 {[%emt 0:10:50]} dxe5 {[%emt 0:00:05]} 25. Rc5 {[%emt 0:02:57] White is more active.} Be7 {[%emt 0:15:30]} (25... Nc6 $16) 26. Rxe5 $18 {[%emt 0:09:14]} b4 $2 {[%emt 0:14:49]} (26... h6 {might work better.} 27. g4 Rc8) 27. axb4 {[%emt 0:23:44]} Nc6 {[%emt 0:07:56] [#]} 28. Rxc6 {[%emt 0:05:49]} Bxc6 {[%emt 0:00:05]} 29. Bc5 {[%emt 0:00:02]} Rb7 {[%emt 0:04:09]} 30. b5 {[%emt 0:00:29]} (30. Nd4 $142) 30... Bxc5 $2 {[%emt 0:08:00]} (30... Bxb5 31. Rxe7 Rxe7) 31. Rxe8+ {[%emt 0:00:10]} Bxe8 {[%emt 0:00:04]} 32. e5 {[%emt 0:00:33]} Re7 {[%emt 0:00:38]} 33. Ne4 {[%emt 0:00:19]} Nd7 {[%emt 0:00:15]} 34. Neg5 {[%emt 0:17:08]} g6 {[%emt 0:01:52]} 35. Qe4 {[%emt 0:08:54]} Rd8 {[%emt 0:13:41]} (35... Rc8 $142 36. Bc4 Nf8) 36. Qh4 {[%emt 0:00:23]} Nf8 {[%emt 0:00:54] [#]} 37. Ne4 $1 {[%emt 0:00:17]} Rxd3 {[%emt 0:03:26]} (37... Red7 38. Nxc5) 38. Nxc5 {[%emt 0:00:06][%mdl 64] Discovered Attack} Rd1+ {[%emt 0:00:04]} 39. Kh2 {[%emt 0:00:02]} Rc7 {[%emt 0:00:52] [#]} 40. Qxa4 $1 {[%emt 0:04:28]} Rd8 {[%emt 0:02:53]} (40... Rxc5 41. Qxd1) 41. Qa5 {[%emt 0:38:07]} Rcc8 {[%emt 0:30:12]} 42. Ne4 {[%emt 0:00:00]} Rb8 {[%emt 0:00:00]} 43. Nd6 {[%emt 0:00:00]} Ne6 {[%emt 0:00:00]} 44. Nd2 {[%emt 0:00:00]} Bxb5 {[%emt 0:00:00]} 45. Qa7 {[%emt 0:00:00]} ({Not} 45. Nxb5 Rd5 $16) 45... Bd7 {[%emt 0:00:00]} 46. N2e4 {[%emt 0:00:00] Strongly threatening Nf6+.} Ra8 {[%emt 0:00:00]} 47. Qe3 {[%emt 0:00:00] White wants to mate with Qh6.} Kg7 {[%emt 0:00:00] Inhibits Qh6+.} 48. Qf3 {[%emt 0:00:00]} Rf8 {[%emt 0:00:00]} 49. Nf6 {[%emt 0:00:00]} Ra7 {[%emt 0:02:50] [#]} 50. Nd5 {[%emt 0:00:00]} (50. Nf5+ $142 $1 {[%mdl 512]} Kh8 {[#]} 51. Qe3 $1 Rg8 52. Qxa7 gxf5 53. Nxg8 Kxg8 54. Qxd7 Kf8 55. b4) 50... h5 {[%emt 0:02:43] White is clearly winning.} 51. Qf6+ {[%emt 0:00:00]} Kh7 {[%emt 0:00:06]} 52. Nxf7 {[%emt 0:00:00] White threatens Ne7 and mate. Pair of Knights!} Be8 {[%emt 0:00:32]} 53. Ng5+ {[%emt 0:00:00] Black got outplayed after the opening.  Weighted Error Value: White=0.40/Black=1.04} 1-0

[Event "Mitropa Cup Open 2022"]
[Site "Corte"]
[Date "2022.05.01"]
[Round "2.5"]
[White "Koellner, Ruben Gideon"]
[Black "Moussard, Jules"]
[Result "0-1"]
[ECO "A48"]
[WhiteElo "2440"]
[BlackElo "2630"]
[Annotator "TA"]
[PlyCount "106"]
[EventDate "2022.04.30"]
[EventType "team-tourn"]
[EventCountry "FRA"]
[SourceTitle "playchess.com"]
[Source "ChessBase"]
[SourceQuality "1"]
[TimeControl "40/5400+30:1800+30"]

{[%evp 18,106,15,11,8,0,10,3,10,0,0,6,6,0,0,0,0,0,11,0,0,-5,0,0,0,0,0,0,-6,-6,-6,-9,-7,-51,-45,-56,-45,-66,-71,-118,-41,-46,-22,-21,-9,-60,-62,-316,-206,-205,-205,-182,-163,-328,-317,-633,-614,-614,-481,-481,-464,-473,-472,-464,-454,-411,-159,-177,-93,-135,-135,-140,-124,-129,-116,-121,-96,-93,-40,-45,-44,-113,-122,-327,-317,-1024,-795,-731,-708,-6211,-5177]} 1. d4 {[%emt 0:00:03]} Nf6 {[%emt 0:00:57]} 2. Nf3 {[%emt 0:00:07]} g6 {[%emt 0:02:43]} 3. Nbd2 {[%emt 0:00:07]} Bg7 {[%emt 0:03:34]} 4. e4 {[%emt 0:00:07]} d6 {[%emt 0:00:02]} 5. Bc4 {[%emt 0:00:19]} O-O {[%emt 0:00:39]} 6. O-O {[%emt 0:00:07]} Nc6 {[%emt 0:01:08]} 7. c3 {[%emt 0:01:01]} e5 {[%emt 0:00:57]} 8. dxe5 {[%emt 0:00:06]} Nxe5 {[%emt 0:00:11]} 9. Nxe5 {[%emt 0:00:06]} dxe5 {[%emt 0:00:03]} 10. Qe2 {[%emt 0:00:13]} a5 $5 {[%emt 0:02:21][%mdl 4] An interesting side line. B07: Pirc Defence: Miscellaneous Systems.} 11. a4 {[%emt 0:00:09]} Qe7 {[%emt 0:00:43]} 12. b3 {[%emt 0:01:29]} Rd8 {[%emt 0:00:04] The position is equal.} 13. Nf3 {[%emt 0:03:00]} h6 {[%emt 0:02:09]} 14. Ba3 {[%emt 0:00:56]} Qe8 {[%emt 0:00:34] [#]} 15. Rfd1 $146 {[%emt 0:01:18]} ({Predecessor:} 15. Rfe1 Nh5 16. g3 Bg4 17. Rad1 Rxd1 18. Rxd1 Rd8 19. Kg2 Rxd1 20. Qxd1 Nf6 21. Qd3 {0-1 (67) Murzin,V (2519)-Onischuk,V (2620) Warsaw 2021}) 15... Bd7 {[%emt 0:01:28]} 16. Ne1 {[%emt 0:04:45]} Be6 {[%emt 0:23:17]} 17. f3 {[%emt 0:13:08]} c6 {[%emt 0:02:49][%cal Bc7c6,Bc6b5,Bb5a4,Ba4a3][%mdl 32]} 18. Nc2 {[%emt 0:09:12]} Bxc4 {[%emt 0:02:22]} 19. Qxc4 {[%emt 0:03:55]} b5 {[%emt 0:00:21]} 20. Qe2 {[%emt 0:06:46]} Qe6 {[%emt 0:03:01]} 21. axb5 {[%emt 0:14:16]} Rxd1+ {[%emt 0:06:24]} 22. Qxd1 cxb5 {[%emt 0:00:16]} 23. Ne3 {[%emt 0:24:00]} Qb6 {[%emt 0:03:33]} 24. Qe2 {[%emt 0:00:08]} a4 {[%emt 0:04:04]} 25. Bb4 {[%emt 0:04:49]} Bf8 $1 {[%emt 0:01:25]} 26. Bxf8 {[%emt 0:04:59]} Kxf8 {[%emt 0:00:05]} 27. bxa4 {[%emt 0:00:53]} bxa4 {[%emt 0:03:17]} (27... Rxa4 28. Rb1 $11) 28. Kf1 {[%emt 0:02:58]} (28. h4 $142) 28... Qc5 {[%emt 0:01:53]} (28... a3 $17 29. Ra2 Kg7) 29. Qd3 $15 {[%emt 0:00:57]} a3 30. Ke2 Rb8 {[%emt 0:04:33]} 31. Nc4 {[%emt 0:02:42]} (31. c4 $1 $11) 31... Rb3 $36 {[%emt 0:08:08][%mdl 2048] Black has good play.} 32. Kd2 $2 {[%mdl 8192]} (32. Qd6+ $1 $15 Qxd6 33. Nxd6) 32... Kg7 {[%emt 0:01:36]} 33. Kc2 {[%emt 0:01:08]} Rb7 {[%emt 0:05:30][%cal Bb3b7,Bb7c7,Bc7c3][%mdl 32]} 34. Rxa3 {[%emt 0:03:12]} Qb5 {Inhibits Ra6. White must now prevent ...Qb1+.} ({Stronger than} 34... Qg1 35. Ra6 $17) 35. Qf1 {[%emt 0:00:18] Inhibits Qb1+.} (35. Kc1) 35... Ne8 {[%emt 0:02:43][%cal Oe8d6] Strongly threatening ...Nd6!} 36. Ra1 $2 {[%emt 0:00:30]} (36. Ra5 Qb3+ 37. Kd2) 36... Qb3+ $19 {[%emt 0:01:34]} 37. Kd3 {[%emt 0:00:26]} Rc7 {[%emt 0:12:59]} 38. Nd2 {[%emt 0:00:05]} Rxc3+ {[%emt 0:00:20]} ({Wrong is} 38... Rd7+ $2 39. Ke2 Qxc3 40. Ra2 $19) 39. Ke2 {[%emt 0:00:07]} Qb5+ {[%emt 0:01:44]} ({Inferior is} 39... Qc2 40. Qb1 $11) 40. Ke1 Qc5 41. Qf2 {[%emt 0:04:00]} Qc6 {[%emt 0:01:31]} (41... Re3+ $19 {and Black stays clearly on top.} 42. Kf1 Qb5+ 43. Kg1 Re2) 42. Rb1 {[%emt 0:07:28]} Rc5 {[%emt 0:04:49]} ({Black should play} 42... Rc2 $1 $19 {...Nd6 is the strong threat.} 43. Qe3 Nc7) 43. Qe3 {[%emt 0:08:40]} Nd6 $1 {[%emt 0:10:28]} 44. Kf2 {[%emt 0:00:34]} Nb5 45. Kg1 {[%emt 0:02:52]} Rc3 {[%emt 0:01:42]} 46. Qe1 {[%emt 0:00:42]} Nd4 {[%emt 0:01:29]} 47. Kh1 {[%emt 0:01:10]} h5 {[%emt 0:04:33] 0x0.0022057a3264dp-1022s more active pieces.} (47... Ne6 $17 {aiming for ...Nf4.} 48. Nb3 Nf4) 48. Nf1 $1 $15 {[%emt 0:00:24]} Qc5 {[%emt 0:01:17]} 49. h3 {[%emt 0:03:10] [#]} (49. h4 $15) 49... Ne6 $1 $17 {[%emt 0:00:18] And now ...Nf4 would win.} 50. Ng3 $2 {[%emt 0:04:04] [#]} (50. Qe2 $17 {is a better defense.}) 50... Nf4 $1 $19 {[%emt 0:01:01] Threatens to win with ...Rc2.} 51. Rd1 $2 {[%emt 0:01:37]} (51. Ne2 Re3 52. Qc1 Qxc1+ 53. Nxc1) 51... Rc2 {[%emt 0:01:25] Black is clearly winning.} 52. Qg1 {[%emt 0:01:33]} Qc3 {[%emt 0:00:41]} 53. Nf1 {[%emt 0:01:13] [#]} Nxh3 $1 {[%emt 0:00:32][%mdl 512] Weighted Error Value: White=0.62/Black=0.15 (very precise)} 0-1